[Event "Early-Titled-Tuesday-Blitz-July-09-2024"]
[Site "Chess.com"]
[Date "2024.07.09"]
[Round "1"]
[White "AmbartsumianTyhran2012"]
[Black "lindsay790"]
[Result "1-0"]
[WhiteElo "2568"]
[BlackElo "2140"]
[TimeControl "180+1"]
[EndTime "8:06:50 PDT"]
[Termination "AmbartsumianTyhran2012 won on time"]

1. e4 {[%clk 0:03:00.9]} 1... c5 {[%clk 0:03:00]} 2. Nf3 {[%clk 0:02:59.8]} 2...
d6 {[%clk 0:02:59.9]} 3. c3 {[%clk 0:02:57]} 3... Nf6 {[%clk 0:02:54.2]} 4. Bd3
{[%clk 0:02:56.2]} 4... e5 {[%clk 0:02:50.9]} 5. h3 {[%clk 0:02:54]} 5... Nc6
{[%clk 0:02:50.7]} 6. Bc2 {[%clk 0:02:53.5]} 6... d5 {[%clk 0:02:48.3]} 7. d3
{[%clk 0:02:48.5]} 7... h6 {[%clk 0:02:45.3]} 8. Qe2 {[%clk 0:02:44.8]} 8... Bd6
{[%clk 0:02:38.2]} 9. a4 {[%clk 0:02:38.1]} 9... O-O {[%clk 0:02:34.9]} 10. Na3
{[%clk 0:02:37.6]} 10... Bc7 {[%clk 0:02:27.4]} 11. O-O {[%clk 0:02:31.2]} 11...
a6 {[%clk 0:02:23.8]} 12. exd5 {[%clk 0:02:05.1]} 12... Qxd5 {[%clk 0:02:11.6]}
13. Nc4 {[%clk 0:02:04.1]} 13... Rb8 {[%clk 0:01:59.4]} 14. a5 {[%clk 0:02:02]}
14... Re8 {[%clk 0:01:49.7]} 15. Rd1 {[%clk 0:02:00.1]} 15... Bf5 {[%clk
0:01:38.2]} 16. Ne3 {[%clk 0:01:56.7]} 16... Qd7 {[%clk 0:01:30.9]} 17. Nxf5
{[%clk 0:01:46.7]} 17... Qxf5 {[%clk 0:01:30.6]} 18. Nd2 {[%clk 0:01:42.8]}
18... Nxa5 {[%clk 0:01:21]} 19. Ne4 {[%clk 0:01:41.1]} 19... Nxe4 {[%clk
0:01:17.3]} 20. dxe4 {[%clk 0:01:42]} 20... Qg6 {[%clk 0:01:15.4]} 21. Be3
{[%clk 0:01:23]} 21... b6 {[%clk 0:01:09.6]} 22. Qxa6 {[%clk 0:01:13.4]} 22...
Nc6 {[%clk 0:00:31.3]} 23. Qb5 {[%clk 0:01:01.7]} 23... Re6 {[%clk 0:00:27.7]}
24. Rd7 {[%clk 0:00:54.8]} 24... Rc8 {[%clk 0:00:24.9]} 25. Qa6 {[%clk
0:00:27.6]} 25... Rce8 {[%clk 0:00:05.3]} 26. Rxc7 {[%clk 0:00:25.9]} 26... Nb8
{[%clk 0:00:04.8]} 27. Qb7 {[%clk 0:00:24.2]} 27... Qh5 {[%clk 0:00:03.5]} 28.
Rc8 {[%clk 0:00:23.4]} 1-0

[Event "Early-Titled-Tuesday-Blitz-July-09-2024"]
[Site "Chess.com"]
[Date "2024.07.09"]
[Round "1"]
[White "Zheenbekov86"]
[Black "FREDERICKtheMATE"]
[Result "0-1"]
[WhiteElo "2413"]
[BlackElo "2740"]
[TimeControl "180+1"]
[EndTime "8:06:52 PDT"]
[Termination "FREDERICKtheMATE won on time"]

1. e4 {[%clk 0:02:58.6]} 1... c5 {[%clk 0:02:59.3]} 2. Nf3 {[%clk 0:02:58.3]}
2... Nc6 {[%clk 0:02:57.9]} 3. Bb5 {[%clk 0:02:57.9]} 3... g6 {[%clk 0:02:57.3]}
4. O-O {[%clk 0:02:57.5]} 4... Bg7 {[%clk 0:02:57.7]} 5. Re1 {[%clk 0:02:57.6]}
5... e5 {[%clk 0:02:57.4]} 6. Nc3 {[%clk 0:02:53.7]} 6... Nge7 {[%clk
0:02:57.3]} 7. Bc4 {[%clk 0:02:50.9]} 7... O-O {[%clk 0:02:56.6]} 8. d3 {[%clk
0:02:48.7]} 8... d6 {[%clk 0:02:56.3]} 9. h3 {[%clk 0:02:48.8]} 9... h6 {[%clk
0:02:56.3]} 10. a3 {[%clk 0:02:46.9]} 10... a6 {[%clk 0:02:55.6]} 11. Nd5 {[%clk
0:02:43.4]} 11... b5 {[%clk 0:02:54.9]} 12. Ba2 {[%clk 0:02:43]} 12... Kh7
{[%clk 0:02:52.2]} 13. c3 {[%clk 0:02:41.7]} 13... Be6 {[%clk 0:02:46.3]} 14. b4
{[%clk 0:02:27]} 14... a5 {[%clk 0:02:38.3]} 15. bxc5 {[%clk 0:02:25.3]} 15...
dxc5 {[%clk 0:02:38.3]} 16. Nxe7 {[%clk 0:02:21.7]} 16... Qxe7 {[%clk
0:02:34.8]} 17. Bd5 {[%clk 0:02:15.7]} 17... Qd6 {[%clk 0:02:30]} 18. Bxe6
{[%clk 0:02:11.2]} 18... Qxe6 {[%clk 0:02:22.3]} 19. Be3 {[%clk 0:02:10.5]}
19... Qd6 {[%clk 0:02:21.8]} 20. Qb1 {[%clk 0:02:03.7]} 20... Rab8 {[%clk
0:02:14.1]} 21. Rd1 {[%clk 0:02:02.1]} 21... Rfd8 {[%clk 0:02:08.2]} 22. h4
{[%clk 0:01:57]} 22... Bf8 {[%clk 0:01:50.8]} 23. h5 {[%clk 0:01:56.1]} 23...
Qe6 {[%clk 0:01:49.7]} 24. d4 {[%clk 0:01:38.8]} 24... cxd4 {[%clk 0:01:49]} 25.
cxd4 {[%clk 0:01:38.2]} 25... exd4 {[%clk 0:01:49]} 26. Nxd4 {[%clk 0:01:24.8]}
26... Nxd4 {[%clk 0:01:48]} 27. Bxd4 {[%clk 0:01:21.8]} 27... b4 {[%clk
0:01:46.5]} 28. axb4 {[%clk 0:01:18.6]} 28... Rxb4 {[%clk 0:01:45.7]} 29. Bb2
{[%clk 0:00:36]} 29... Rdb8 {[%clk 0:01:43.9]} 30. Qa2 {[%clk 0:00:28.7]} 30...
Qxa2 {[%clk 0:01:38.9]} 31. Rxa2 {[%clk 0:00:28.1]} 31... Rxb2 {[%clk
0:01:37.5]} 32. hxg6+ {[%clk 0:00:27.1]} 32... Kxg6 {[%clk 0:01:32.4]} 33. Rxa5
{[%clk 0:00:27]} 33... Rb1 {[%clk 0:01:31.4]} 34. Rxb1 {[%clk 0:00:25.4]} 34...
Rxb1+ {[%clk 0:01:31.8]} 35. Kh2 {[%clk 0:00:25.8]} 35... Re1 {[%clk 0:01:28.9]}
36. Ra6+ {[%clk 0:00:18.5]} 36... f6 {[%clk 0:01:19.3]} 37. f3 {[%clk
0:00:17.6]} 37... Bc5 {[%clk 0:01:17.6]} 38. Kg3 {[%clk 0:00:14.6]} 38... Re2
{[%clk 0:01:13.8]} 39. Kh3 {[%clk 0:00:10.5]} 39... Bd4 {[%clk 0:01:05.9]} 40.
Rd6 {[%clk 0:00:09.6]} 40... Be5 {[%clk 0:01:05.5]} 41. Rd5 {[%clk 0:00:09.6]}
41... Rf2 {[%clk 0:01:03]} 42. Rb5 {[%clk 0:00:07.9]} 42... h5 {[%clk 0:01:02]}
43. Rc5 {[%clk 0:00:06.8]} 43... Rf1 {[%clk 0:01:02]} 44. g3 {[%clk 0:00:06.1]}
44... Rxf3 {[%clk 0:01:01.9]} 0-1

[Event "Early-Titled-Tuesday-Blitz-July-09-2024"]
[Site "Chess.com"]
[Date "2024.07.09"]
[Round "1"]
[White "AwareIdea"]
[Black "KhBegmuratov"]
[Result "0-1"]
[WhiteElo "2487"]
[BlackElo "2900"]
[TimeControl "180+1"]
[EndTime "8:06:57 PDT"]
[Termination "KhBegmuratov won by resignation"]

1. d4 {[%clk 0:02:52]} 1... d5 {[%clk 0:02:59.9]} 2. c4 {[%clk 0:02:48.8]} 2...
e6 {[%clk 0:03:00]} 3. Nf3 {[%clk 0:02:48.8]} 3... a6 {[%clk 0:02:59.9]} 4. cxd5
{[%clk 0:02:47.2]} 4... exd5 {[%clk 0:03:00.8]} 5. Bf4 {[%clk 0:02:46]} 5... Nf6
{[%clk 0:03:00.2]} 6. Nc3 {[%clk 0:02:45.3]} 6... c6 {[%clk 0:03:00.5]} 7. e3
{[%clk 0:02:41.9]} 7... Bd6 {[%clk 0:03:00.3]} 8. Bg5 {[%clk 0:02:39.3]} 8...
Be6 {[%clk 0:03:00.2]} 9. Qb3 {[%clk 0:02:35.3]} 9... Qc7 {[%clk 0:02:59.5]} 10.
Rc1 {[%clk 0:02:34]} 10... Nbd7 {[%clk 0:02:59.6]} 11. Be2 {[%clk 0:02:31.6]}
11... O-O {[%clk 0:02:59.3]} 12. Bh4 {[%clk 0:02:26.8]} 12... Rab8 {[%clk
0:02:54]} 13. O-O {[%clk 0:02:26]} 13... Rfe8 {[%clk 0:02:49.3]} 14. Bg3 {[%clk
0:02:25.5]} 14... Bxg3 {[%clk 0:02:48.8]} 15. hxg3 {[%clk 0:02:26.4]} 15... Qd6
{[%clk 0:02:49.6]} 16. Na4 {[%clk 0:02:23.5]} 16... Ne4 {[%clk 0:02:48.4]} 17.
Qc2 {[%clk 0:02:23.1]} 17... Bg4 {[%clk 0:02:36.9]} 18. Bd3 {[%clk 0:02:14.5]}
18... h6 {[%clk 0:02:33.6]} 19. Bxe4 {[%clk 0:02:06]} 19... Rxe4 {[%clk
0:02:20.6]} 20. Nc5 {[%clk 0:02:00.2]} 20... Nxc5 {[%clk 0:02:20.2]} 21. dxc5
{[%clk 0:02:01.1]} 21... Qf6 {[%clk 0:02:18.5]} 22. Qc3 {[%clk 0:01:44.7]} 22...
Qg6 {[%clk 0:02:18.5]} 23. Ne5 {[%clk 0:01:28.8]} 23... Qg5 {[%clk 0:02:18.1]}
24. Nf3 {[%clk 0:01:00.7]} 24... Qh5 {[%clk 0:02:17.2]} 25. Nd2 {[%clk
0:00:55.6]} 25... Re7 {[%clk 0:02:15.3]} 26. Qb4 {[%clk 0:00:49.4]} 26... Rbe8
{[%clk 0:02:03.8]} 27. Rfe1 {[%clk 0:00:48]} 27... Qg6 {[%clk 0:02:02.9]} 28.
Rc3 {[%clk 0:00:37.5]} 28... h5 {[%clk 0:02:03]} 29. Qf4 {[%clk 0:00:35]} 29...
Bc8 {[%clk 0:02:00.9]} 30. Rd1 {[%clk 0:00:26.7]} 30... Bg4 {[%clk 0:01:55.1]}
31. Re1 {[%clk 0:00:19.2]} 31... d4 {[%clk 0:01:52.8]} 32. Qxd4 {[%clk
0:00:18.8]} 32... Rd7 {[%clk 0:01:52.7]} 33. Qf4 {[%clk 0:00:06.6]} 33... Rxd2
{[%clk 0:01:52.6]} 34. f3 {[%clk 0:00:07.2]} 34... Be6 {[%clk 0:01:51.2]} 35. e4
{[%clk 0:00:07.1]} 35... Rxb2 {[%clk 0:01:51]} 36. Rd1 {[%clk 0:00:06.8]} 36...
Qf6 {[%clk 0:01:50.2]} 37. Qxf6 {[%clk 0:00:04.7]} 37... gxf6 {[%clk 0:01:51.1]}
38. a3 {[%clk 0:00:04.5]} 38... b6 {[%clk 0:01:48.7]} 39. cxb6 {[%clk
0:00:04.2]} 39... Rxb6 {[%clk 0:01:49.6]} 40. Rd6 {[%clk 0:00:04.1]} 40... Rc8
{[%clk 0:01:49.9]} 41. f4 {[%clk 0:00:04]} 41... f5 {[%clk 0:01:48.9]} 42. e5
{[%clk 0:00:03.9]} 42... Rb1+ {[%clk 0:01:47.6]} 43. Kh2 {[%clk 0:00:04.3]}
43... Rb2 {[%clk 0:01:47.2]} 44. Rdxc6 {[%clk 0:00:04.3]} 44... Rxc6 {[%clk
0:01:48.1]} 45. Rxc6 {[%clk 0:00:04.9]} 45... Rxg2+ {[%clk 0:01:48.7]} 46. Kh3
{[%clk 0:00:04.1]} 46... Rg1 {[%clk 0:01:45.8]} 47. Rd6 {[%clk 0:00:05]} 47...
Ra1 {[%clk 0:01:44.5]} 48. Rxa6 {[%clk 0:00:04.6]} 48... Rh1+ {[%clk 0:01:42.7]}
49. Kg2 {[%clk 0:00:04.3]} 49... Bd5+ {[%clk 0:01:43.6]} 50. Kf2 {[%clk
0:00:04.6]} 50... Rh2+ {[%clk 0:01:44.3]} 51. Ke3 {[%clk 0:00:05.2]} 51... Rg2
{[%clk 0:01:44.4]} 52. Kd4 {[%clk 0:00:05.7]} 52... Be6 {[%clk 0:01:44.7]} 53.
a4 {[%clk 0:00:05.7]} 53... Rxg3 {[%clk 0:01:44.9]} 54. Ra8+ {[%clk 0:00:04.9]}
54... Kg7 {[%clk 0:01:44.9]} 55. a5 {[%clk 0:00:05.8]} 55... Rf3 {[%clk
0:01:45.6]} 56. a6 {[%clk 0:00:06.5]} 56... Rxf4+ {[%clk 0:01:45.7]} 57. Kc5
{[%clk 0:00:07.4]} 57... Ra4 {[%clk 0:01:43.8]} 58. a7 {[%clk 0:00:07.8]} 58...
h4 {[%clk 0:01:39.5]} 59. Kb6 {[%clk 0:00:08]} 59... h3 {[%clk 0:01:40.2]} 60.
Rd8 {[%clk 0:00:07.1]} 60... h2 {[%clk 0:01:39.8]} 61. Rd1 {[%clk 0:00:07.1]}
61... Bd5 {[%clk 0:01:39.3]} 62. Rxd5 {[%clk 0:00:05]} 62... h1=Q {[%clk
0:01:39.3]} 63. Rb5 {[%clk 0:00:04.7]} 63... Qg1+ {[%clk 0:01:37.5]} 64. Kc6
{[%clk 0:00:05.1]} 64... Rxa7 {[%clk 0:01:37.3]} 0-1

[Event "Early-Titled-Tuesday-Blitz-July-09-2024"]
[Site "Chess.com"]
[Date "2024.07.09"]
[Round "1"]
[White "dropstoneDP"]
[Black "komogro"]
[Result "1-0"]
[WhiteElo "3030"]
[BlackElo "2531"]
[TimeControl "180+1"]
[EndTime "8:06:58 PDT"]
[Termination "dropstoneDP won on time"]

1. e4 {[%clk 0:02:59.1]} 1... e5 {[%clk 0:02:56.1]} 2. Nf3 {[%clk 0:02:59.1]}
2... Nc6 {[%clk 0:02:56.7]} 3. Bb5 {[%clk 0:02:58.3]} 3... a6 {[%clk 0:02:57.1]}
4. Ba4 {[%clk 0:02:58.5]} 4... Nf6 {[%clk 0:02:57.3]} 5. O-O {[%clk 0:02:58]}
5... Be7 {[%clk 0:02:57.5]} 6. Bxc6 {[%clk 0:02:56.6]} 6... dxc6 {[%clk
0:02:57.8]} 7. d3 {[%clk 0:02:57.3]} 7... Nd7 {[%clk 0:02:56.2]} 8. a4 {[%clk
0:02:56.9]} 8... a5 {[%clk 0:02:54.1]} 9. Nbd2 {[%clk 0:02:52.1]} 9... O-O
{[%clk 0:02:53.4]} 10. Nc4 {[%clk 0:02:52.2]} 10... Bd6 {[%clk 0:02:53.9]} 11.
Kh1 {[%clk 0:02:51.1]} 11... f6 {[%clk 0:02:54.2]} 12. Nh4 {[%clk 0:02:50.9]}
12... Nc5 {[%clk 0:02:53.9]} 13. Be3 {[%clk 0:02:47.1]} 13... Ne6 {[%clk
0:02:53.8]} 14. Nf5 {[%clk 0:02:47]} 14... Re8 {[%clk 0:02:52.7]} 15. Qg4 {[%clk
0:02:40.4]} 15... g6 {[%clk 0:02:50.9]} 16. Qg3 {[%clk 0:02:37.5]} 16... Nf4
{[%clk 0:02:44.2]} 17. Nfxd6 {[%clk 0:02:34.1]} 17... cxd6 {[%clk 0:02:43]} 18.
Bxf4 {[%clk 0:02:33.2]} 18... exf4 {[%clk 0:02:43]} 19. Qxf4 {[%clk 0:02:34.1]}
19... d5 {[%clk 0:02:37]} 20. exd5 {[%clk 0:02:35]} 20... cxd5 {[%clk
0:01:58.3]} 21. Nd6 {[%clk 0:02:34.9]} 21... Re6 {[%clk 0:01:55.3]} 22. Nb5
{[%clk 0:02:34.6]} 22... Bd7 {[%clk 0:01:35.1]} 23. Nd4 {[%clk 0:02:33.3]} 23...
Re5 {[%clk 0:01:31.3]} 24. Rae1 {[%clk 0:02:32.5]} 24... Qe7 {[%clk 0:01:31.5]}
25. Nf3 {[%clk 0:02:29.8]} 25... Re6 {[%clk 0:01:20.6]} 26. Rxe6 {[%clk
0:02:28.9]} 26... Bxe6 {[%clk 0:01:21]} 27. Re1 {[%clk 0:02:28.5]} 27... Re8
{[%clk 0:01:13.3]} 28. h3 {[%clk 0:02:24.2]} 28... Qf7 {[%clk 0:00:57.7]} 29.
Nd4 {[%clk 0:02:19.1]} 29... Kg7 {[%clk 0:00:54.6]} 30. Qd6 {[%clk 0:02:12.6]}
30... Bd7 {[%clk 0:00:16.4]} 31. Rxe8 {[%clk 0:02:09.3]} 31... Qxe8 {[%clk
0:00:17.3]} 32. Qxd5 {[%clk 0:02:07.5]} 32... Qe1+ {[%clk 0:00:16.6]} 33. Kh2
{[%clk 0:02:07.9]} 33... Bxa4 {[%clk 0:00:16.3]} 34. Qxb7+ {[%clk 0:02:04]}
34... Kh6 {[%clk 0:00:16.3]} 35. Nf3 {[%clk 0:01:49.4]} 35... Qxf2 {[%clk
0:00:15.8]} 36. b3 {[%clk 0:01:49.7]} 36... Qxc2 {[%clk 0:00:12.1]} 37. bxa4
{[%clk 0:01:46.8]} 37... Qxa4 {[%clk 0:00:13]} 38. Qb8 {[%clk 0:01:43.6]} 38...
Qb4 {[%clk 0:00:11.2]} 39. Qxb4 {[%clk 0:01:41.6]} 39... axb4 {[%clk 0:00:12.1]}
40. Nd4 {[%clk 0:01:42.5]} 40... Kg5 {[%clk 0:00:06.4]} 41. Kg3 {[%clk
0:01:43.4]} 41... f5 {[%clk 0:00:06.8]} 42. Kf3 {[%clk 0:01:39.8]} 42... Kf6
{[%clk 0:00:06.5]} 43. Kf4 {[%clk 0:01:38.7]} 43... g5+ {[%clk 0:00:06.4]} 44.
Ke3 {[%clk 0:01:39.3]} 44... h5 {[%clk 0:00:05.6]} 45. g3 {[%clk 0:01:39.6]}
45... h4 {[%clk 0:00:02.7]} 46. gxh4 {[%clk 0:01:40.5]} 46... gxh4 {[%clk
0:00:02.5]} 47. Kf4 {[%clk 0:01:40.5]} 47... Kg6 {[%clk 0:00:02.7]} 48. Nb3
{[%clk 0:01:39.8]} 48... Kf6 {[%clk 0:00:02.4]} 49. Nc5 {[%clk 0:01:40.4]} 49...
Kg6 {[%clk 0:00:01.1]} 50. d4 {[%clk 0:01:39.7]} 50... Kf6 {[%clk 0:00:01.6]}
51. d5 {[%clk 0:01:31.2]} 51... Ke7 {[%clk 0:00:02.2]} 52. Ke5 {[%clk
0:01:31.8]} 52... f4 {[%clk 0:00:02.6]} 53. d6+ {[%clk 0:01:32.1]} 53... Kd8
{[%clk 0:00:03.4]} 54. Kxf4 {[%clk 0:01:32.4]} 1-0

[Event "Early-Titled-Tuesday-Blitz-July-09-2024"]
[Site "Chess.com"]
[Date "2024.07.09"]
[Round "1"]
[White "Payyappat"]
[Black "Kobalia"]
[Result "0-1"]
[WhiteElo "2434"]
[BlackElo "2790"]
[TimeControl "180+1"]
[EndTime "8:06:58 PDT"]
[Termination "Kobalia won on time"]

1. e4 {[%clk 0:03:00.9]} 1... c5 {[%clk 0:02:51.9]} 2. Nf3 {[%clk 0:03:00.5]}
2... e6 {[%clk 0:02:51.5]} 3. d4 {[%clk 0:02:59.4]} 3... cxd4 {[%clk 0:02:51.9]}
4. Nxd4 {[%clk 0:03:00.2]} 4... Nc6 {[%clk 0:02:52.3]} 5. Be3 {[%clk 0:02:59.4]}
5... Nf6 {[%clk 0:02:50.5]} 6. Nc3 {[%clk 0:02:59.4]} 6... a6 {[%clk 0:02:49.1]}
7. Bd3 {[%clk 0:02:59.3]} 7... d6 {[%clk 0:02:48.9]} 8. O-O {[%clk 0:02:59.1]}
8... Be7 {[%clk 0:02:49.4]} 9. f4 {[%clk 0:02:59.1]} 9... O-O {[%clk 0:02:49.4]}
10. f5 {[%clk 0:02:55.2]} 10... Nxd4 {[%clk 0:02:39.8]} 11. Bxd4 {[%clk
0:02:55]} 11... e5 {[%clk 0:02:40]} 12. Be3 {[%clk 0:02:53.9]} 12... b5 {[%clk
0:02:39]} 13. g4 {[%clk 0:02:51.3]} 13... h6 {[%clk 0:02:38.1]} 14. g5 {[%clk
0:02:38.3]} 14... hxg5 {[%clk 0:02:36.5]} 15. Bxg5 {[%clk 0:02:39.2]} 15... b4
{[%clk 0:02:26.9]} 16. Bxf6 {[%clk 0:02:22.3]} 16... bxc3 {[%clk 0:02:26.4]} 17.
Bxe7 {[%clk 0:02:21.2]} 17... Qxe7 {[%clk 0:02:25.5]} 18. Qh5 {[%clk 0:02:15.4]}
18... cxb2 {[%clk 0:02:15.8]} 19. Rab1 {[%clk 0:02:14.7]} 19... Qf6 {[%clk
0:02:11.5]} 20. Rf3 {[%clk 0:02:11.8]} 20... Qh6 {[%clk 0:02:09.5]} 21. Qxh6
{[%clk 0:01:58.7]} 21... gxh6 {[%clk 0:02:10.4]} 22. Rg3+ {[%clk 0:01:57.4]}
22... Kh7 {[%clk 0:02:08]} 23. Rxb2 {[%clk 0:01:56.7]} 23... a5 {[%clk
0:02:04.1]} 24. Rb6 {[%clk 0:01:55.2]} 24... Rd8 {[%clk 0:02:00.5]} 25. f6
{[%clk 0:01:49.8]} 25... Be6 {[%clk 0:02:00]} 26. Rg7+ {[%clk 0:01:38.4]} 26...
Kh8 {[%clk 0:01:59.5]} 27. Kf2 {[%clk 0:01:29.2]} 27... Bxa2 {[%clk 0:01:52.4]}
28. Kg3 {[%clk 0:01:09.1]} 28... Be6 {[%clk 0:01:43.1]} 29. Kh4 {[%clk 0:01:08]}
29... Rg8 {[%clk 0:01:42.5]} 30. Rxg8+ {[%clk 0:01:00.6]} 30... Kxg8 {[%clk
0:01:42.1]} 31. Rxd6 {[%clk 0:00:59.7]} 31... a4 {[%clk 0:01:42.3]} 32. Rb6
{[%clk 0:00:30.2]} 32... a3 {[%clk 0:01:42.1]} 33. Rb1 {[%clk 0:00:29.9]} 33...
a2 {[%clk 0:01:42.1]} 34. Ra1 {[%clk 0:00:27.6]} 34... Rb8 {[%clk 0:01:41.2]}
35. c4 {[%clk 0:00:25.6]} 35... Rb3 {[%clk 0:01:40.9]} 36. Bf1 {[%clk
0:00:16.7]} 36... Rb1 {[%clk 0:01:39]} 37. Rxa2 {[%clk 0:00:15.8]} 37... Rxf1
{[%clk 0:01:38.9]} 38. Rg2+ {[%clk 0:00:15.2]} 38... Kh8 {[%clk 0:01:37.6]} 39.
c5 {[%clk 0:00:15.2]} 39... Rf4+ {[%clk 0:01:28.9]} 40. Kh5 {[%clk 0:00:15.1]}
40... Rxe4 {[%clk 0:01:28.9]} 41. Rd2 {[%clk 0:00:09.5]} 41... Kh7 {[%clk
0:01:24.1]} 42. Rg2 {[%clk 0:00:08.7]} 42... Rf4 {[%clk 0:01:20.2]} 43. c6
{[%clk 0:00:06.3]} 43... Rxf6 {[%clk 0:01:17.1]} 44. c7 {[%clk 0:00:06.4]} 44...
Rf5+ {[%clk 0:01:15.9]} 45. Kh4 {[%clk 0:00:04.7]} 45... Rf4+ {[%clk 0:01:15.8]}
46. Kh5 {[%clk 0:00:04.6]} 46... f6 {[%clk 0:01:05]} 0-1

[Event "Early-Titled-Tuesday-Blitz-July-09-2024"]
[Site "Chess.com"]
[Date "2024.07.09"]
[Round "1"]
[White "lluiss"]
[Black "Viacheslav92"]
[Result "0-1"]
[WhiteElo "2167"]
[BlackElo "2572"]
[TimeControl "180+1"]
[EndTime "8:06:58 PDT"]
[Termination "Viacheslav92 won by resignation"]

1. Nf3 {[%clk 0:02:59.5]} 1... Nf6 {[%clk 0:02:59.5]} 2. d4 {[%clk 0:02:55.2]}
2... d5 {[%clk 0:02:55.7]} 3. c4 {[%clk 0:02:54.7]} 3... e6 {[%clk 0:02:51.8]}
4. cxd5 {[%clk 0:02:54.2]} 4... exd5 {[%clk 0:02:50.6]} 5. Nc3 {[%clk
0:02:54.7]} 5... Be7 {[%clk 0:02:50.6]} 6. Bg5 {[%clk 0:02:52.2]} 6... O-O
{[%clk 0:02:51.5]} 7. Qc2 {[%clk 0:02:52.2]} 7... c5 {[%clk 0:02:50.3]} 8. e3
{[%clk 0:02:44.9]} 8... Nc6 {[%clk 0:02:47.8]} 9. a3 {[%clk 0:02:33]} 9... cxd4
{[%clk 0:02:45.2]} 10. exd4 {[%clk 0:02:29.9]} 10... h6 {[%clk 0:02:44.6]} 11.
Bh4 {[%clk 0:02:28.1]} 11... Bg4 {[%clk 0:02:40.7]} 12. Rd1 {[%clk 0:02:04.2]}
12... Rc8 {[%clk 0:02:13.2]} 13. Be2 {[%clk 0:02:01.3]} 13... Ne4 {[%clk
0:02:12.6]} 14. Bxe7 {[%clk 0:01:59.2]} 14... Qxe7 {[%clk 0:02:12]} 15. Nxd5
{[%clk 0:01:25.7]} 15... Qe6 {[%clk 0:02:11.1]} 16. Nc3 {[%clk 0:01:25.8]} 16...
Bxf3 {[%clk 0:01:48.1]} 17. gxf3 {[%clk 0:01:25.6]} 17... Nxc3 {[%clk
0:01:35.4]} 18. bxc3 {[%clk 0:01:22.6]} 18... Ne7 {[%clk 0:01:30.3]} 19. Qe4
{[%clk 0:01:08.9]} 19... Rxc3 {[%clk 0:01:23.3]} 20. Qxe6 {[%clk 0:01:04.9]}
20... fxe6 {[%clk 0:01:24.2]} 21. O-O {[%clk 0:01:03]} 21... Rxa3 {[%clk
0:01:23.1]} 22. Bc4 {[%clk 0:01:03]} 22... Nd5 {[%clk 0:01:19.1]} 23. Rfe1
{[%clk 0:01:01.3]} 23... Rc3 {[%clk 0:01:18.5]} 24. Ba2 {[%clk 0:00:56.4]} 24...
Nf4 {[%clk 0:01:17.1]} 25. Bxe6+ {[%clk 0:00:54.2]} 25... Nxe6 {[%clk
0:01:17.5]} 26. Rxe6 {[%clk 0:00:54.8]} 26... Rf7 {[%clk 0:01:12.8]} 27. d5
{[%clk 0:00:40.7]} 27... Rd7 {[%clk 0:01:11.8]} 28. d6 {[%clk 0:00:37]} 28...
Kf7 {[%clk 0:01:06.8]} 29. Re4 {[%clk 0:00:32.7]} 29... Rxf3 {[%clk 0:00:58.4]}
30. Rde1 {[%clk 0:00:25.8]} 30... Rxd6 {[%clk 0:00:57]} 31. Re7+ {[%clk
0:00:26]} 31... Kg6 {[%clk 0:00:48.9]} 32. Rxb7 {[%clk 0:00:26.9]} 32... Rf7
{[%clk 0:00:48.6]} 33. Reb1 {[%clk 0:00:20.5]} 33... Rdf6 {[%clk 0:00:44.4]} 34.
Rxf7 {[%clk 0:00:19.5]} 34... Rxf7 {[%clk 0:00:45.3]} 35. Rb8 {[%clk 0:00:19.4]}
35... Kf6 {[%clk 0:00:42]} 36. Kg2 {[%clk 0:00:18.9]} 36... Ke6 {[%clk
0:00:42.5]} 37. Rd8 {[%clk 0:00:18.7]} 37... Rd7 {[%clk 0:00:39.8]} 38. Rg8
{[%clk 0:00:18]} 38... Kd6 {[%clk 0:00:37.4]} 39. Kf3 {[%clk 0:00:17.5]} 39...
Kc5 {[%clk 0:00:34.4]} 40. Rb8 {[%clk 0:00:16.7]} 40... a5 {[%clk 0:00:32.7]}
41. Ke3 {[%clk 0:00:16.5]} 41... Ra7 {[%clk 0:00:31.8]} 0-1

[Event "Early-Titled-Tuesday-Blitz-July-09-2024"]
[Site "Chess.com"]
[Date "2024.07.09"]
[Round "1"]
[White "SpeedofLight0"]
[Black "ShahMatKanal"]
[Result "0-1"]
[WhiteElo "3158"]
[BlackElo "2552"]
[TimeControl "180+1"]
[EndTime "8:07:01 PDT"]
[Termination "ShahMatKanal won by checkmate"]

1. d4 {[%clk 0:02:58.7]} 1... d5 {[%clk 0:02:58.8]} 2. Nc3 {[%clk 0:02:58.3]}
2... Nf6 {[%clk 0:02:57.4]} 3. Bf4 {[%clk 0:02:58]} 3... a6 {[%clk 0:02:56.2]}
4. e3 {[%clk 0:02:58.2]} 4... b5 {[%clk 0:02:54.6]} 5. Bd3 {[%clk 0:02:54.5]}
5... Bb7 {[%clk 0:02:53.3]} 6. g4 {[%clk 0:02:54]} 6... h6 {[%clk 0:02:49.7]} 7.
h4 {[%clk 0:02:49.3]} 7... e6 {[%clk 0:02:43]} 8. Qf3 {[%clk 0:02:47.7]} 8...
Bd6 {[%clk 0:02:30.8]} 9. g5 {[%clk 0:02:40.9]} 9... Nfd7 {[%clk 0:02:04.9]} 10.
gxh6 {[%clk 0:01:56.2]} 10... gxh6 {[%clk 0:02:03.9]} 11. Bxd6 {[%clk
0:01:53.9]} 11... cxd6 {[%clk 0:02:03.6]} 12. O-O-O {[%clk 0:01:54.5]} 12... b4
{[%clk 0:01:56.8]} 13. Nce2 {[%clk 0:01:52.8]} 13... Nc6 {[%clk 0:01:52.3]} 14.
Nf4 {[%clk 0:01:50.3]} 14... Qa5 {[%clk 0:01:45.4]} 15. Kb1 {[%clk 0:01:49.2]}
15... O-O-O {[%clk 0:01:45.5]} 16. Nge2 {[%clk 0:01:21.3]} 16... Nb6 {[%clk
0:01:43.5]} 17. Rhg1 {[%clk 0:01:10.8]} 17... Rd7 {[%clk 0:01:29.6]} 18. Rg7
{[%clk 0:01:07.2]} 18... Rhd8 {[%clk 0:01:09.9]} 19. Nh5 {[%clk 0:01:02.8]}
19... f5 {[%clk 0:01:04]} 20. Rg6 {[%clk 0:00:59.8]} 20... Re7 {[%clk 0:00:58]}
21. Nef4 {[%clk 0:00:59]} 21... e5 {[%clk 0:00:46.8]} 22. Bxf5+ {[%clk
0:00:57.7]} 22... Kb8 {[%clk 0:00:46.3]} 23. Ne6 {[%clk 0:00:56.2]} 23... Na4
{[%clk 0:00:26.2]} 24. Ka1 {[%clk 0:00:21.1]} 24... Nc3 {[%clk 0:00:25.2]} 25.
bxc3 {[%clk 0:00:21.5]} 25... bxc3 {[%clk 0:00:26.1]} 26. Qxd5 {[%clk
0:00:04.7]} 26... Qxd5 {[%clk 0:00:24.7]} 27. Rb1 {[%clk 0:00:04.9]} 27... Rc8
{[%clk 0:00:19.1]} 28. Rb3 {[%clk 0:00:03.5]} 28... exd4 {[%clk 0:00:18.6]} 29.
e4 {[%clk 0:00:03.7]} 29... Qa5 {[%clk 0:00:17.4]} 30. Nef4 {[%clk 0:00:03.8]}
30... Nb4 {[%clk 0:00:16.8]} 31. Kb1 {[%clk 0:00:04.1]} 31... Qxa2+ {[%clk
0:00:16.5]} 32. Kc1 {[%clk 0:00:02.8]} 32... Qxc2# {[%clk 0:00:17.4]} 0-1